fUST/lending_fUST_20240805
["ID","MTS","AMOUNT","RATE_DAILY","PERIOD"]
[334233143,1722851441508,-4902.28470425,0.00040214,2]
[334233144,1722851441519,-4902.28470426,0.00040277,2]
[334233145,1722851441532,-151.0,0.000403,14]
[334233146,1722851441541,-157.803525,0.000403,14]
[334233147,1722851441551,-151.0,0.000403,14]
[334233148,1722851441566,-157.803525,0.000403,14]
[334233149,1722851441575,-151.0,0.000403,14]
[334233150,1722851441585,-243.689018,0.000403,14]
[334233151,1722851441595,-300047.20767427,0.000403,120]
[334233152,1722851441606,-153.0,0.00040301,2]
[334233153,1722851441615,-153.0,0.00040301,2]
[334233154,1722851441625,-153.0,0.00040301,2]
[334233155,1722851441635,-151.0,0.00040456,15]
[334233156,1722851441644,-151.0,0.00040456,15]
[334233157,1722851441655,-10225.15,0.0004053,120]
[334233158,1722851441666,-5112.574999,0.000407,120]
[334233159,1722851441676,-151.0,0.0004074,120]
[334233160,1722851441686,-180.32,0.000409,31]
[334233161,1722851441696,-180.32,0.000409,31]
[334233162,1722851441705,-180.32,0.000409,31]
[334233163,1722851441715,-180.32,0.000409,31]
[334233164,1722851441724,-180.32,0.000409,31]
[334233165,1722851441734,-180.32,0.000409,31]
[334233166,1722851441743,-180.32,0.000409,31]
[334233167,1722851441752,-180.32,0.000409,31]
[334233168,1722851441761,-180.32,0.000409,31]
[334233169,1722851441779,-180.32,0.000409,31]
[334233170,1722851441788,-180.32,0.000409,31]
[334233171,1722851441798,-180.32,0.000409,31]
[334233172,1722851441808,-180.32,0.000409,31]
[334233173,1722851441817,-180.32,0.000409,31]
[334233174,1722851441827,-180.32,0.000409,31]
[334233175,1722851441836,-180.32,0.000409,31]
[334233176,1722851441846,-180.32,0.000409,31]
[334233177,1722851441856,-180.32,0.000409,31]
[334233178,1722851441866,-180.32,0.000409,31]
[334233179,1722851441876,-180.32,0.000409,31]
[334233180,1722851441885,-1148.70666521,0.00040995,2]
[334233181,1722851441895,-312.63243902,0.00040995,2]
[334233182,1722851441905,-164.0,0.00041,14]
[334233183,1722851441915,-164.0,0.00041,14]
[334233184,1722851441923,-150.112233,0.00041,6]
[334233185,1722851441933,-288.0,0.00041,14]
[334233186,1722851441942,-355.39,0.00041,30]
[334233187,1722851441951,-10225.15,0.00041,120]
[334233188,1722851441961,-151.27311453,0.00041013,6]
[334233189,1722851441971,-152.0,0.00041041,31]
[334233190,1722851441980,-152.0,0.00041041,31]
[334233191,1722851441989,-77206.450063,0.00041085,5]
[334233192,1722851441999,-19301.6125157,0.0004109,5]
[334233193,1722851442008,-30930.36277354,0.00041095,15]
[334233194,1722851442020,-502.07940977,0.00041095,7]
[334233195,1722851442034,-500.0,0.00041095,2]
[334233196,1722851442043,-500.0,0.00041095,2]
[334233197,1722851442053,-3279.05,0.00041095,21]
[334233198,1722851442062,-508.87286016,0.00041095,20]
[334233199,1722851442071,-500.0,0.00041095,2]
[334233200,1722851442080,-509.93525858,0.00041095,3]
[334233201,1722851442089,-500.0,0.00041095,21]
[334233202,1722851442098,-500.0,0.00041095,2]
[334233203,1722851442107,-500.0,0.00041095,10]
[334233204,1722851442116,-500.0,0.00041095,2]
[334233205,1722851442125,-500.0,0.00041095,21]
[334233206,1722851442134,-151.0,0.00041095,14]
[334233207,1722851442143,-151.0,0.00041095,14]
[334233208,1722851442153,-151.716452,0.00041095,14]
[334233209,1722851442163,-151.0,0.00041095,14]
[334233210,1722851442172,-151.0,0.00041095,14]
[334233211,1722851442183,-151.0,0.00041095,14]
[334233212,1722851442192,-151.0,0.00041095,14]
[334233213,1722851442201,-151.0,0.00041095,14]
[334233214,1722851442211,-151.0,0.00041095,14]
[334233215,1722851442221,-157.722398,0.00041095,14]
[334233216,1722851442231,-151.0,0.00041095,14]
[334233217,1722851442241,-151.0,0.00041095,14]
[334233218,1722851442251,-151.0,0.00041095,14]
[334233219,1722851442261,-151.0,0.00041095,14]
[334233220,1722851442278,-157.803525,0.00041095,14]
[334233221,1722851442288,-157.803525,0.00041095,14]
[334233222,1722851442299,-157.803525,0.00041095,14]
[334233223,1722851442308,-157.803525,0.00041095,14]
[334233224,1722851442318,-182.141029,0.00041095,14]
[334233225,1722851442328,-157.803525,0.00041095,14]
[334233226,1722851442337,-157.803525,0.00041095,14]
[334233227,1722851442347,-157.803525,0.00041095,14]
[334233228,1722851442357,-157.803525,0.00041095,14]
[334233229,1722851442367,-151.0,0.00041095,14]
[334233230,1722851442376,-151.0,0.00041095,14]
[334233231,1722851442385,-151.0,0.00041095,14]
[334233232,1722851442395,-151.0,0.00041095,14]
[334233233,1722851442404,-151.0,0.00041095,14]
[334233234,1722851442415,-151.0,0.00041095,14]
[334233235,1722851442427,-151.0,0.00041095,14]
[334233236,1722851442437,-151.0,0.00041095,14]
[334233237,1722851442447,-402.568735,0.00041095,14]
[334233238,1722851442457,-402.568735,0.00041095,14]
[334233239,1722851442597,-402.568735,0.00041095,14]
[334233240,1722851442607,-402.568735,0.00041095,14]
[334233241,1722851442616,-402.568735,0.00041095,14]
[334233242,1722851442627,-402.568735,0.00041095,14]
[334233243,1722851442637,-163.230576,0.00041095,14]
[334233244,1722851442650,-163.230576,0.00041095,14]
[334233245,1722851442660,-163.230576,0.00041095,14]
[334233246,1722851442669,-163.230576,0.00041095,14]
[334233247,1722851442679,-163.230576,0.00041095,14]
[334233248,1722851442689,-163.230576,0.00041095,14]
[334233249,1722851442698,-151.0,0.00041095,14]
[334233250,1722851442708,-151.0,0.00041095,14]
[334233251,1722851442718,-151.0,0.00041095,14]
[334233252,1722851442727,-151.0,0.00041095,14]
[334233253,1722851442739,-167.031489,0.00041095,14]
[334233254,1722851442748,-151.0,0.00041095,14]
[334233255,1722851442758,-151.0,0.00041095,14]
[334233256,1722851442769,-151.0,0.00041095,14]
[334233257,1722851442783,-151.0,0.00041095,14]
[334233258,1722851442793,-151.0,0.00041095,14]
[334233259,1722851442803,-151.0,0.00041095,14]
[334233260,1722851442813,-287.46261,0.00041095,14]
[334233261,1722851442822,-287.46261,0.00041095,14]
[334233262,1722851442832,-287.46261,0.00041095,14]
[334233263,1722851442841,-287.46261,0.00041095,14]
[334233264,1722851442851,-287.46261,0.00041095,14]
[334233265,1722851442860,-287.46261,0.00041095,14]
[334233266,1722851442870,-151.0,0.00041095,2]
[334233267,1722851442880,-151.0,0.00041095,14]
[334233268,1722851442890,-151.0,0.00041095,14]
[334233269,1722851442900,-170.502261,0.00041095,14]
[334233270,1722851442909,-246.500666,0.00041095,14]
[334233271,1722851442919,-246.500666,0.00041095,14]
[334233272,1722851442928,-246.500666,0.00041095,14]
[334233273,1722851442937,-246.500666,0.00041095,14]
[334233274,1722851442947,-246.500666,0.00041095,14]
[334233275,1722851442956,-246.500666,0.00041095,14]
[334233276,1722851442966,-151.0,0.00041095,14]
[334233277,1722851442975,-151.0,0.00041095,14]
[334233278,1722851442984,-151.912403,0.00041095,14]
[334233279,1722851442994,-263.267708,0.00041095,14]
[334233280,1722851443004,-263.267708,0.00041095,14]
[334233282,1722851443015,-263.267708,0.00041095,14]
[334233284,1722851443032,-263.267708,0.00041095,14]
[334233286,1722851443042,-263.267708,0.00041095,14]
[334233288,1722851443052,-263.267708,0.00041095,14]
[334233290,1722851443061,-170.649318,0.00041095,14]
[334233292,1722851443070,-170.649318,0.00041095,14]
[334233294,1722851443080,-170.649318,0.00041095,14]
[334233296,1722851443089,-933.41638,0.00041095,14]
[334233297,1722851443098,-933.41638,0.00041095,14]
[334233298,1722851443108,-933.41638,0.00041095,14]
[334233299,1722851443118,-170.649318,0.00041095,14]
[334233300,1722851443127,-170.649318,0.00041095,14]
[334233301,1722851443137,-170.649318,0.00041095,14]
[334233302,1722851443146,-933.41638,0.00041095,14]
[334233303,1722851443155,-933.41638,0.00041095,14]
[334233304,1722851443165,-933.41638,0.00041095,14]
[334233305,1722851443174,-151.0,0.00041095,14]
[334233306,1722851443184,-151.0,0.00041095,14]
[334233307,1722851443194,-151.0,0.00041095,14]
[334233308,1722851443203,-151.0,0.00041095,14]
[334233309,1722851443213,-151.0,0.00041095,14]
[334233310,1722851443223,-151.0,0.00041095,14]
[334233312,1722851443233,-375.055056,0.00041095,14]
[334233314,1722851443243,-375.055056,0.00041095,14]
[334233316,1722851443253,-375.055056,0.00041095,14]
[334233317,1722851443263,-375.055056,0.00041095,14]
[334233318,1722851443280,-375.055056,0.00041095,14]
[334233319,1722851443290,-375.055056,0.00041095,14]
[334233320,1722851443300,-321.21275,0.00041095,14]
[334233322,1722851443310,-321.21275,0.00041095,14]
[334233324,1722851443319,-321.21275,0.00041095,14]
[334233326,1722851443328,-381.36654,0.00041095,14]
[334233328,1722851443338,-381.36654,0.00041095,14]
[334233330,1722851443348,-381.36654,0.00041095,14]
[334233332,1722851443357,-603.360278,0.00041095,14]
[334233334,1722851443366,-603.360278,0.00041095,14]
[334233336,1722851443376,-603.360278,0.00041095,14]
[334233338,1722851443387,-381.36654,0.00041095,14]
[334233340,1722851443397,-381.36654,0.00041095,14]
[334233341,1722851443407,-381.36654,0.00041095,14]
[334233342,1722851443417,-14563.36660503,0.00041095,120]
[334233346,1722851443426,-603.360278,0.00041095,14]
[334233349,1722851443435,-603.360278,0.00041095,14]
[334233352,1722851443446,-603.360278,0.00041095,14]
[334233355,1722851443455,-696.06,0.00041095,31]
[334233357,1722851443465,-500.0,0.00041095,31]
[334233360,1722851443474,-275.87523137,0.00041095,31]
[334233362,1722851443484,-265.84464276,0.00041095,2]
[334233365,1722851443494,-5000.0,0.00041095,30]
[334233367,1722851443508,-1899.29906292,0.00041095,4]
[334233369,1722851443517,-6419.99731741,0.00041095,4]
[334233371,1722851443533,-500.0,0.00041095,31]
[334233373,1722851443543,-500.0,0.00041095,31]
[334233376,1722851443553,-155.59865243,0.00041095,4]
[334233379,1722851443564,-241.60926928,0.00041095,31]
[334233382,1722851443574,-1225.91366278,0.00041095,4]
[334233383,1722851443586,-500.0,0.00041095,31]
[334233386,1722851443596,-500.0,0.00041095,31]
[334233389,1722851443606,-179.47265816,0.00041095,4]
[334233393,1722851443617,-9678.40661042,0.00041095,20]
[334233396,1722851443626,-500.0,0.00041095,31]
[334233398,1722851443636,-346.09,0.00041095,4]
[334233400,1722851443646,-1307.992793,0.00041095,14]
[334233404,1722851443657,-500.0,0.00041095,31]
[334233407,1722851443666,-1307.992793,0.00041095,14]
[334233409,1722851443676,-1307.992793,0.00041095,14]
[334233411,1722851443687,-500.0,0.00041095,31]
[334233413,1722851443697,-500.0,0.00041095,31]
[334233416,1722851443707,-1307.992793,0.00041095,14]
[334233417,1722851443717,-1307.992793,0.00041095,14]
[334233420,1722851443727,-1307.992793,0.00041095,14]
[334233423,1722851443736,-1401.11531025,0.00041095,2]
[334233425,1722851443746,-500.0,0.00041095,31]
[334233428,1722851443757,-500.0,0.00041095,31]
[334233429,1722851443767,-10587.87307826,0.00041095,120]
[334233431,1722851443787,-154.80649189,0.00041095,30]
[334233433,1722851443798,-500.0,0.00041095,31]
[334233434,1722851443807,-500.0,0.00041095,31]
[334233436,1722851443817,-500.0,0.00041095,31]
[334233437,1722851443826,-500.0,0.00041095,31]
[334233439,1722851443835,-500.0,0.00041095,31]
[334233441,1722851443845,-500.0,0.00041095,31]
[334233443,1722851443855,-500.0,0.00041095,31]
[334233444,1722851443865,-485.0,0.00041095,31]
[334233446,1722851443875,-500.0,0.00041095,31]
[334233448,1722851443885,-500.0,0.00041095,31]
[334233450,1722851443896,-500.0,0.00041095,31]
[334233451,1722851443906,-500.0,0.00041095,31]
[334233453,1722851443916,-200.0,0.00041095,7]
[334233454,1722851443926,-500.0,0.00041095,31]
[334233456,1722851443937,-500.0,0.00041095,31]
[334233458,1722851443947,-500.02570714,0.00041095,31]
[334233460,1722851443957,-500.0,0.00041095,31]
[334233461,1722851443968,-500.0,0.00041095,31]
[334233462,1722851443978,-500.0,0.00041095,31]
[334233464,1722851443988,-500.0,0.00041095,31]
[334233465,1722851443997,-2018.39,0.00041095,31]
[334233467,1722851444008,-500.0,0.00041095,31]
[334233469,1722851444018,-500.0,0.00041095,31]
[334233470,1722851444034,-500.0,0.00041095,31]
[334233472,1722851444044,-500.0,0.00041095,31]
[334233473,1722851444054,-500.0,0.00041095,31]
[334233475,1722851444064,-500.0,0.00041095,31]
[334233476,1722851444074,-762.99,0.00041095,31]
[334233477,1722851444083,-500.0,0.00041095,31]
[334233478,1722851444092,-922.01,0.00041095,31]
[334233479,1722851444102,-500.0,0.00041095,31]
[334233480,1722851444111,-500.0,0.00041095,31]
[334233482,1722851444120,-500.0,0.00041095,31]
[334233484,1722851444129,-416.08032361,0.00041095,31]
[334233486,1722851444139,-500.0,0.00041095,30]
[334233488,1722851444148,-500.0,0.00041095,31]
[334233490,1722851444158,-500.0,0.00041095,31]
[334233492,1722851444168,-4873.6,0.00041095,31]
[334233494,1722851444177,-500.0,0.00041095,31]
[334233496,1722851444187,-500.0,0.00041095,31]
[334233498,1722851444198,-2241.22,0.00041095,31]
[334233500,1722851444208,-974.41,0.00041095,31]
[334233502,1722851444218,-500.0,0.00041095,31]
[334233504,1722851444228,-2055.21,0.00041095,31]
[334233506,1722851444237,-500.0,0.00041095,31]
[334233508,1722851444248,-521.63497199,0.00041095,31]
[334233510,1722851444258,-500.0,0.00041095,31]
[334233512,1722851444268,-500.0,0.00041095,31]
[334233514,1722851444286,-500.0,0.00041095,31]
[334233516,1722851444296,-500.0,0.00041095,31]
[334233517,1722851444305,-500.0,0.00041095,31]
[334233518,1722851444315,-500.0,0.00041095,31]
[334233519,1722851444324,-500.0,0.00041095,31]
[334233520,1722851444333,-1387.84,0.00041095,31]
[334233521,1722851444343,-500.0,0.00041095,31]
[334233522,1722851444353,-701.41,0.00041095,31]
[334233523,1722851444363,-522.99,0.00041095,31]
[334233524,1722851444375,-1046.48,0.00041095,31]
[334233525,1722851444385,-500.0,0.00041095,31]
[334233526,1722851444395,-500.0,0.00041095,31]
[334233527,1722851444405,-500.0,0.00041095,31]
[334233528,1722851444414,-500.0,0.00041095,31]
[334233529,1722851444424,-500.0,0.00041095,31]
[334233530,1722851444434,-500.0,0.00041095,31]
[334233531,1722851444444,-2738.84,0.00041095,31]
[334233532,1722851444454,-500.0,0.00041095,31]
[334233533,1722851444463,-500.0,0.00041095,31]
[334233534,1722851444473,-966.85,0.00041095,31]
[334233535,1722851444482,-500.0,0.00041095,31]
[334233536,1722851444491,-500.0,0.00041095,31]
[334233537,1722851444501,-500.0,0.00041095,31]
[334233538,1722851444512,-500.0,0.00041095,31]
[334233539,1722851444529,-500.0,0.00041095,31]
[334233540,1722851444539,-500.0,0.00041095,31]
[334233541,1722851444548,-500.0,0.00041095,31]
[334233542,1722851444561,-500.0,0.00041095,31]
[334233543,1722851444572,-500.0,0.00041095,31]
[334233544,1722851444582,-500.0,0.00041095,31]
[334233545,1722851444592,-500.0,0.00041095,31]
[334233546,1722851444603,-500.0,0.00041095,31]
[334233547,1722851444612,-500.0,0.00041095,31]
[334233548,1722851444621,-500.0,0.00041095,31]
[334233549,1722851444630,-500.0,0.00041095,31]
[334233550,1722851444640,-506.87190737,0.00041095,31]
[334233551,1722851444650,-500.0,0.00041095,31]
[334233552,1722851444660,-500.0,0.00041095,31]
[334233553,1722851444670,-500.0,0.00041095,31]
[334233554,1722851444679,-500.0,0.00041095,31]
[334233555,1722851444688,-500.0,0.00041095,31]
[334233556,1722851444698,-500.0,0.00041095,31]
[334233557,1722851444708,-500.0,0.00041095,31]
[334233558,1722851444717,-1919.02,0.00041095,31]
[334233559,1722851444727,-500.0,0.00041095,31]
[334233560,1722851444736,-500.0,0.00041095,31]
[334233561,1722851444747,-1557.44,0.00041095,31]
[334233562,1722851444756,-500.0,0.00041095,31]
[334233563,1722851444766,-500.0,0.00041095,31]
[334233564,1722851444784,-500.0,0.00041095,31]
[334233565,1722851444793,-500.0,0.00041095,31]
[334233566,1722851444803,-500.0,0.00041095,31]
[334233567,1722851444813,-4900.35,0.00041095,31]
[334233568,1722851444822,-1000.0,0.00041095,90]
[334233569,1722851444831,-500.0,0.00041095,31]
[334233570,1722851444840,-669.55,0.00041095,31]
[334233571,1722851444850,-1680.47,0.00041095,31]
[334233573,1722851444859,-500.0,0.00041095,31]
[334233575,1722851444869,-500.0,0.00041095,31]
[334233576,1722851444879,-500.0,0.00041095,2]
[334233578,1722851444888,-500.0,0.00041095,31]
[334233580,1722851444897,-1966.52,0.00041095,31]
[334233581,1722851444906,-500.0,0.00041095,31]
[334233583,1722851444915,-622.25,0.00041095,31]
[334233585,1722851444925,-500.0,0.00041095,31]
[334233587,1722851444934,-884.25,0.00041095,31]
[334233589,1722851444943,-500.0,0.00041095,31]
[334233591,1722851444952,-1354.53,0.00041095,31]
[334233592,1722851444962,-500.0,0.00041095,31]
[334233593,1722851444971,-500.0,0.00041095,31]
[334233594,1722851444980,-500.0,0.00041095,31]
[334233595,1722851444990,-921.54042,0.00041096,120]
[334233597,1722851444999,-465.8,0.000411,14]
[334233599,1722851445009,-8042.55,0.000411,14]
[334233601,1722851445018,-933.41638,0.00041123,14]
[334233603,1722851445039,-933.41638,0.00041123,14]
[334233605,1722851445048,-151.0,0.00041123,14]
[334233607,1722851445058,-375.055056,0.00041123,14]
[334233610,1722851445068,-375.055056,0.00041123,14]
[334233612,1722851445078,-306.0,0.00041123,2]
[334233614,1722851445087,-153.0470608,0.00041123,2]
[334233616,1722851445097,-588.5772798,0.00041123,2]
[334233618,1722851445107,-153.0,0.00041123,2]
[334233620,1722851445117,-153.0,0.00041123,2]
[334233622,1722851445127,-294.2310959,0.00041123,2]
[334233624,1722851445137,-153.0,0.00041123,2]
[334233626,1722851445146,-414.0261484,0.00041123,2]
[334233628,1722851445156,-207.0130742,0.00041123,2]
[334233630,1722851445165,-10260.51381052,0.0004116,30]
[334233632,1722851445175,-200.0,0.00041191,120]
[334233634,1722851445184,-370.69,0.00041191,120]
[334233636,1722851445193,-150.0,0.00041233,2]
[334233638,1722851445203,-507.0,0.00041233,2]
[334233640,1722851445213,-1411.0,0.00041233,2]
[334233642,1722851445222,-288.0,0.0004137,90]
[334233644,1722851445231,-155.0,0.0004145,45]
[334233646,1722851445240,-152.0,0.00041508,31]
[334233648,1722851445258,-152.0,0.00041508,31]
[334233649,1722851445288,-200.0,0.00041618,120]
[334233651,1722851445297,-19301.6125157,0.00041633,5]
[334233653,1722851445307,-2039.6,0.00041643,31]
[334233655,1722851445316,-500.0,0.00041643,31]
[334233657,1722851445326,-478.52096566,0.00041643,31]
[334233658,1722851445335,-500.0,0.00041643,31]
[334233660,1722851445344,-500.0,0.00041643,31]
[334233662,1722851445354,-500.0,0.00041643,31]
[334233663,1722851445363,-500.0,0.00041643,31]
[334233664,1722851445372,-500.0,0.00041643,30]
[334233665,1722851445382,-500.0,0.00041643,31]
[334233666,1722851445391,-500.0,0.00041643,31]
[334233667,1722851445400,-500.0,0.00041643,31]
[334233668,1722851445410,-500.0,0.00041643,31]
[334233669,1722851445420,-500.0,0.00041643,31]
[334233670,1722851445429,-500.0,0.00041643,31]
[334233671,1722851445558,-500.0,0.00041643,31]
[334233672,1722851445568,-500.0,0.00041643,31]
[334233673,1722851445578,-500.0,0.00041643,31]
[334233674,1722851445591,-500.70198582,0.00041643,31]
[334233675,1722851445600,-500.0,0.00041643,31]
[334233676,1722851445609,-500.0,0.00041643,31]
[334233677,1722851445620,-500.0,0.00041643,31]
[334233678,1722851445629,-500.0,0.00041643,31]
[334233679,1722851445639,-500.0,0.00041643,31]
[334233680,1722851445648,-500.0,0.00041643,31]
[334233681,1722851445657,-500.0,0.00041643,31]
[334233682,1722851445669,-500.0,0.00041643,31]
[334233683,1722851445679,-500.0,0.00041643,31]
[334233684,1722851445689,-1308.02,0.00041643,31]
[334233685,1722851445698,-500.0,0.00041643,31]
[334233686,1722851445709,-500.0,0.00041643,31]
[334233687,1722851445718,-618.55865275,0.00041643,31]
[334233689,1722851445727,-500.0,0.00041643,31]
[334233691,1722851445737,-500.0,0.00041643,31]
[334233693,1722851445746,-500.0,0.00041643,31]
[334233695,1722851445756,-500.0,0.00041643,31]
[334233697,1722851445766,-500.0,0.00041643,31]
[334233699,1722851445782,-500.0,0.00041643,31]
[334233701,1722851445792,-500.0,0.00041643,31]
[334233703,1722851445802,-500.0,0.00041643,31]
[334233705,1722851445812,-500.0,0.00041643,31]
[334233707,1722851445821,-607.18403529,0.00041643,31]
[334233710,1722851445831,-1502.39,0.00041643,31]
[334233712,1722851445841,-500.0,0.00041643,31]
[334233714,1722851445851,-500.0,0.00041643,31]
[334233716,1722851445860,-502.94739758,0.00041643,31]
[334233718,1722851445870,-313.66982165,0.00041643,31]
[334233720,1722851445880,-500.0,0.00041643,31]
[334233722,1722851445889,-592.42,0.00041643,31]
[334233724,1722851445898,-500.0,0.00041643,31]
[334233726,1722851445908,-500.0,0.00041643,31]
[334233728,1722851445918,-642.74,0.00041643,31]
[334233730,1722851445927,-500.0,0.00041643,31]
[334233732,1722851445936,-556.85,0.00041643,31]
[334233734,1722851445946,-500.0,0.00041643,31]
[334233736,1722851445956,-475.00046827,0.00041643,31]
[334233738,1722851445965,-500.0,0.00041643,31]
[334233740,1722851445975,-500.0,0.00041643,31]
[334233742,1722851445984,-500.0,0.00041643,31]
[334233744,1722851445994,-500.0,0.00041643,31]
[334233746,1722851446003,-500.0,0.00041643,31]
[334233748,1722851446013,-500.0,0.00041643,31]
[334233750,1722851446027,-500.0,0.00041643,20]
[334233752,1722851446042,-500.0,0.00041643,10]
[334233754,1722851446051,-500.0,0.00041643,31]
[334233756,1722851446061,-500.0,0.00041643,31]
[334233758,1722851446070,-500.0,0.00041643,31]
[334233760,1722851446080,-500.0,0.00041643,31]
[334233762,1722851446089,-500.0,0.00041643,31]
[334233764,1722851446098,-500.0,0.00041643,31]
[334233766,1722851446108,-500.0,0.00041643,31]
[334233768,1722851446117,-500.0,0.00041643,31]
[334233770,1722851446126,-500.0,0.00041643,31]
[334233772,1722851446135,-549.75979586,0.00041643,31]
[334233773,1722851446144,-500.0,0.00041643,31]
[334233774,1722851446154,-240.06987795,0.00041643,31]
[334233775,1722851446164,-500.0,0.00041643,31]
[334233776,1722851446174,-500.0,0.00041643,31]
[334233777,1722851446184,-503.88787035,0.00041643,31]
[334233778,1722851446194,-500.0,0.00041643,31]
[334233780,1722851446204,-500.0,0.00041643,31]
[334233781,1722851446213,-500.0,0.00041643,31]
[334233782,1722851446223,-500.0,0.00041643,31]
[334233783,1722851446232,-500.0,0.00041643,31]
[334233784,1722851446241,-500.0,0.00041643,31]
[334233785,1722851446250,-500.0,0.00041643,31]
[334233786,1722851446260,-500.0,0.00041643,31]
[334233787,1722851446269,-500.0,0.00041643,31]
[334233788,1722851446287,-500.0,0.00041643,31]
[334233789,1722851446296,-729.16,0.00041643,31]
[334233790,1722851446306,-500.0,0.00041643,31]
[334233791,1722851446316,-500.0,0.00041643,31]
[334233792,1722851446327,-500.0,0.00041643,31]
[334233793,1722851446337,-500.0,0.00041643,31]
[334233794,1722851446346,-500.0,0.00041643,31]
[334233795,1722851446356,-500.0,0.00041643,31]
[334233796,1722851446365,-500.0,0.00041643,31]
[334233797,1722851446374,-500.0,0.00041643,31]
[334233798,1722851446383,-500.0,0.00041643,31]
[334233799,1722851446392,-500.0,0.00041643,31]
[334233801,1722851446402,-562.87051529,0.00041643,31]
[334233802,1722851446412,-541.16,0.00041643,31]
[334233803,1722851446422,-548.78703921,0.00041643,31]
[334233804,1722851446431,-349.01774251,0.00041643,31]
[334233805,1722851446440,-500.0,0.00041643,31]
[334233806,1722851446450,-507.71563522,0.00041643,31]
[334233807,1722851446460,-500.0,0.00041643,31]
[334233808,1722851446469,-501.62100519,0.00041643,2]
[334233809,1722851446479,-500.0,0.00041643,31]
[334233810,1722851446489,-500.0,0.00041643,31]
[334233811,1722851446499,-500.0,0.00041643,31]
[334233812,1722851446509,-500.0,0.00041643,31]
[334233813,1722851446519,-500.0,0.00041643,31]
[334233814,1722851446538,-1509.19,0.00041643,31]
[334233815,1722851446547,-500.0,0.00041643,31]
[334233816,1722851446558,-500.0,0.00041643,31]
[334233817,1722851446567,-500.0,0.00041643,31]
[334233818,1722851446577,-500.0,0.00041643,31]
[334233819,1722851446589,-500.0,0.00041643,31]
[334233820,1722851446599,-500.0,0.00041643,31]
[334233821,1722851446609,-500.0,0.00041643,31]
[334233822,1722851446618,-500.0,0.00041643,31]
[334233823,1722851446628,-500.0,0.00041643,31]
[334233824,1722851446637,-500.0,0.00041643,31]
[334233825,1722851446647,-541.31,0.00041643,31]
[334233826,1722851446657,-500.0,0.00041643,31]
[334233827,1722851446667,-500.0,0.00041643,31]
[334233828,1722851446676,-500.0,0.00041643,31]
[334233829,1722851446686,-500.0,0.00041643,31]
[334233830,1722851446695,-500.0,0.00041643,31]
[334233831,1722851446705,-500.0,0.00041643,31]
[334233832,1722851446715,-500.0,0.00041643,31]
[334233833,1722851446725,-500.0,0.00041643,31]
[334233834,1722851446735,-500.0,0.00041643,31]
[334233835,1722851446745,-500.0,0.00041643,31]
[334233836,1722851446755,-500.0,0.00041643,31]
[334233837,1722851446764,-566.04,0.00041643,31]
[334233838,1722851446778,-500.0,0.00041643,31]
[334233839,1722851446789,-500.0,0.00041643,31]